Cogmind - Beta 14 @@@ ROGUE MODE // 2024.10.20 @ 22:32:59 Player: XDRM Result: Destroyed by G-47 Trooper with Particle Gun Performance ------------- Evolutions (0) 0 Regions Visited (2) 400 Robots Destroyed (30) 150 Value Destroyed (559) 559 Prototype IDs (0) 0 Alien Tech Used (0) 0 Bonus (0) 0 TOTAL SCORE: 1109 Bonus ------- None Cogmind --------- Core Integrity 0/250 Matter 250/300 Energy 100/100 System Corruption 0% Temperature Cool (9) Movement Core (1600) Ox31 Location -10/Mines Parts ------- > --- POWER (1) -------- (None) > --- PROPULSION (2) --- (None) > --- UTILITY (2) ------ Huge Storage Unit Medium Armor Plating > --- WEAPON (2) ------- Particle Cannon Particle Cannon > --- INVENTORY (25) --- Light Ion Engine Flight Unit Flight Unit Flight Unit Flight Unit Flight Unit Flight Unit Heat Sink Medium Matter Pod (100) Visual Processing Unit Tractor Beam Mining Laser Peak State ------------ > --- POWER ------------ Light Ion Engine > --- PROPULSION ------- Light Treads Light Treads > --- UTILITY ---------- Small Storage Unit Medium Armor Plating > --- WEAPON ----------- Particle Cannon Particle Cannon > --- INVENTORY -------- Light Ion Engine Aluminum Leg Aluminum Leg Tractor Beam Particle Cannon Particle Cannon Light Assault Rifle Mining Laser [Rating: 11] Favorites ----------- Power Light Ion Engine Engine Light Ion Engine Propulsion Light Treads Treads Light Treads Leg Aluminum Leg Utility Medium Armor Plating Device Heat Sink Storage Huge Storage Unit Protection Medium Armor Plating Weapon Light Assault Rifle Energy Gun Medium Laser Energy Cannon Particle Cannon Ballistic Gun Light Assault Rifle Ballistic Cannon Light Cannon Build | -11 -10 -10 ------- Run | Yrd Mat Min Slots Evolved . | . . . Power . | . . . Propulsion . | . . . Utility . | . . . Weapon . | . . . Parts Attached 30 | 7 17 6 Power 5 | 1 2 2 Engine 5 | 1 2 2 Core . | . . . Reactor . | . . . Propulsion 9 | 2 7 . Treads 3 | . 3 . Leg 6 | 2 4 . Wheel . | . . . Hover . | . . . Flight . | . . . Utility 8 | 2 4 2 Device 2 | 1 1 . Storage 2 | 1 1 . Processor . | . . . Hackware . | . . . Protection 4 | . 2 2 Artifact . | . . . Weapon 8 | 2 4 2 Energy Gun 2 | 2 . . Energy Cannon 4 | . 2 2 Ballistic Gun 1 | . 1 . Ballistic Cannon 1 | . 1 . Launcher . | . . . Special Weapon . | . . . Impact Weapon . | . . . Slashing Weapon . | . . . Piercing Weapon . | . . . Special Melee Weapon . | . . . Unidentified Prototypes . | . . . Parts Lost 8 | . 1 7 Power 3 | . 1 2 Propulsion 1 | . . 1 Utility 2 | . . 2 Weapon 2 | . . 2 Highest Loss Streak 4 | . 1 4 To Critical Strikes . | . . . Average Slot Usage (%) 87 | . 91 83 Engine 13 | . 13 13 Treads 12 | . 11 12 Leg 3 | . 8 . Storage 14 | . 14 14 Protection 12 | . 11 13 Energy Cannon 6 | . 9 4 Ballistic Gun 11 | . 8 13 Ballistic Cannon 9 | . 9 10 Peak Build Rating 11 | 7 11 9 Average Rating 8 | 5 8 8 On Entrance 5 | . 7 9 Naked Turns . | . . . Heaviest Build 98 | 12 94 98 Greatest Support 40 | 20 40 20 Greatest Overweight (x) 32 | . 7 32 Average Overweight (x) 2 | . 1 4 Largest Inventory Capacity 25 | 8 25 25 Average Capacity 20 | 7 17 25 Most Carried 17 | 8 15 17 Average Carried 12 | 6 10 15 Final Capacity 25 | 8 25 25 Final Carried 15 | 8 15 12 Class Distribution -------------------- 97% | Mutant Dominant Class ---------------- Mutant | -10/Materials Mutant | -10/Mines Resources | -11 -10 -10 ----------- Run | Yrd Mat Min Matter Collected 814 | 270 397 147 Remotely . | . . . Salvage Created 782 | 135 518 129 Parts 60 | 7 40 13 Haulers Intercepted 1 | . 1 . Recyclers Shooed 1 | . 1 . Parts Field Recycled . | . . . Retrieved Matter . | . . . Parts Self-Destructed . | . . . Prevented . | . . . Kills | -11 -10 -10 ------- Run | Yrd Mat Min Combat Hostiles Destroyed 21 | . 15 6 Guns 2 | . . 2 Cannons 18 | . 14 4 Classes Destroyed 7 | 2 5 . Worker 1 | . 1 . Tunneler 2 | 2 . . Hauler 1 | . 1 . Recycler 2 | 1 1 . Watcher 3 | . 3 . Swarmer 12 | . 9 3 Grunt 9 | . 6 3 Best Kill Streak 8 | 2 8 2 Combat Bots Only 5 | . 5 2 Max Kills in Single Turn 2 | 1 2 1 Gunslinging . | . . . Exploded . | . . . Melee . | . . . Uniques/NPCs Destroyed . | . . . Combat | -11 -10 -10 -------- Run | Yrd Mat Min Hostile Shots Fired 183 | . 101 82 Missed 52 | . 32 20 Damage Taken 1456 | . 720 736 Core 253 | . 133 120 Absorbed by Shields . | . . . Core Remaining (%) 100 | 100 . . Volleys Fired 107 | 18 51 38 Largest 2 | 2 2 2 Hottest 136 | 90 136 136 Shots Fired 204 | 35 102 67 Gun 87 | 35 20 32 Cannon 117 | . 82 35 Launcher . | . . . Special . | . . . Kinetic 95 | . 48 47 Thermal 109 | 35 54 20 Explosive . | . . . Electromagnetic . | . . . Robot Hit Streak 7 | 7 4 5 Robot Miss Streak 8 | 5 8 7 Penetration Max . | . . . Secondary Targets . | . . . Shots Hit Robots 102 | 21 48 33 Core Hits 38 | 4 22 12 Critical Kills 1 | . 1 . Critical Parts Destroyed . | . . . Critical Strikes 3 | . 3 . Meltdown 1 | . 1 . Blast 2 | . 2 . Melee Attacks . | . . . Impact . | . . . Slashing . | . . . Piercing . | . . . Sneak Attacks . | . . . Combat Hostiles . | . . . Follow-up Attacks . | . . . Damage Inflicted 1749 | 243 989 517 Guns 453 | 243 89 121 Cannons 1296 | . 900 396 Explosions . | . . . Melee . | . . . Ramming . | . . . Kinetic 667 | . 398 269 Thermal 1082 | 243 591 248 Explosive . | . . . Electromagnetic . | . . . Impact . | . . . Slashing . | . . . Piercing . | . . . Highest Corruption . | . . . Average Corruption . | . . . Corruption Purged . | . . . Corruption Blocked . | . . . Overload Shots . | . . . Overflow Damage . | . . . Projectiles . | . . . Explosions . | . . . Melee . | . . . Knockbacks 6 | . 3 3 Impact . | . . . Kinetic 6 | . 3 3 Secondary . | . . . Self-Inflicted Damage . | . . . Shots . | . . . Rammed . | . . . Targets Rammed . | . . . Kicked . | . . . Crushed . | . . . Highest Temperature 692 | 262 657 692 Average Temperature 150 | 108 140 191 Received Heat Transfer 459 | . 123 336 Effects 26 | . 13 13 Shutdowns 6 | . 2 4 Energy Bleed 6 | . 2 4 Interference 1 | . 1 . Matter Decay 1 | . . 1 Short Circuit 4 | . 2 2 Damage (minor) 2 | . . 2 Damage (major) 4 | . 4 . Damage (core) 2 | . 2 . Siege Activations . | . . . Robots Corrupted . | . . . Combat Hostiles . | . . . Parts Fried . | . . . Impact Corruptions . | . . . Robots Melted 1 | . 1 . Combat Hostiles 1 | . 1 . Parts Melted 5 | 1 4 . Heat Transferred 2150 | 633 1073 444 Parts Sabotaged . | . . . Parts Stolen . | . . . Parts Stripped . | . . . Power Chain Reactions . | . . . Alert | -11 -10 -10 ------- Run | Yrd Mat Min Peak Influence 242 | 15 242 100 Initial 9 | . 9 . Average 30 | 8 40 25 Maximum Alert Level 1 | . 1 . Low Security (%) 97 | 100 94 100 Level 1 2 | . 5 . Level 2 . | . . . Level 3 . | . . . Level 4 . | . . . Level 5 . | . . . High Security . | . . . Max Security . | . . . Squads Dispatched 1 | . 1 . Investigation . | . . . Extermination . | . . . Reinforcement 1 | . 1 . Assault . | . . . Garrison . | . . . Intercept . | . . . Searches Triggered . | . . . Construction Impeded . | . . . Haulers Reinforced . | . . . Active Scanning Responses . | . . . Cargo Convoy Interrupts . | . . . Stealth | -11 -10 -10 --------- Run | Yrd Mat Min Distress Signals 1 | . 1 . Communications Jammed . | . . . Distress Signals . | . . . Times Spotted 30 | . 23 7 Peak Tracking Total 5 | . 5 3 Tactical Retreats . | . . . Traps | -11 -10 -10 ------- Run | Yrd Mat Min Traps Triggered 1 | . 1 . Indirectly . | . . . Trap Hack Attempts . | . . . Triggered . | . . . Disarmed . | . . . Reprogrammed . | . . . Reused . | . . . Traps Extracted . | . . . Installed . | . . . Triggered . | . . . Machines | -11 -10 -10 ---------- Run | Yrd Mat Min Machines Disabled 3 | . . 3 Max in Single Turn 1 | . . 1 Machines Repaired . | . . . Machines Dismantled . | . . . Machines Sabotaged . | . . . Overloaded Fab Kills . | . . . Hacking | -11 -10 -10 --------- Run | Yrd Mat Min Machines Accessed 3 | . 3 . Terminals 3 | . 3 . Fabricators . | . . . Repair Stations . | . . . Recycling Units . | . . . Scanalyzers . | . . . Garrison Access . | . . . Total Hacks 4 | . 4 . Successful 3 | . 3 . Failed 1 | . 1 . Catastrophic . | . . . Database Lockouts . | . . . Manual 3 | . 3 . Terminals 4 | . 4 . Fabricators . | . . . Repair Stations . | . . . Recycling Units . | . . . Scanalyzers . | . . . Garrison Access . | . . . Terminal Hacks 3 | . 3 . Unreport Threat 1 | . 1 . Transport Status 1 | . 1 . Hauler Manifests 1 | . 1 . Fabricator Hacks . | . . . Repair Station Hacks . | . . . Recycling Unit Hacks . | . . . Scanalyzer . | . . . Garrison Access Hacks . | . . . Unauthorized Hacks . | . . . Terminals . | . . . Fabricators . | . . . Repair Stations . | . . . Recycling Units . | . . . Scanalyzers . | . . . Garrison Access . | . . . Data Cores Recovered . | . . . Used . | . . . Hacking Detections 1 | . 1 . Full Trace Events . | . . . Feedback Events . | . . . Feedback Blocked . | . . . Robot Schematics Acquired . | . . . Robots Built . | . . . Authchips . | . . . Time . | . . . Total Robot Build Rating . | . . . Part Schematics Acquired . | . . . Parts Built . | . . . Authchips . | . . . Time . | . . . Total Part Build Rating . | . . . Parts Repaired . | . . . Time . | . . . Parts Recycled . | . . . Recycled Matter . | . . . Retrieved Matter . | . . . Retrieved Components . | . . . Parts Scanalyzed . | . . . Part Schematics Acquired . | . . . Parts Damaged . | . . . Bothacking | -11 -10 -10 ------------ Run | Yrd Mat Min Used RIF Installer . | . . . Robots Hacked . | . . . Non-combat . | . . . Combat . | . . . Robot Hacks Applied . | . . . Relay Couplers Released . | . . . Fabnet Peak Effective % . | . . . Robots Rewired . | . . . Allies Hacked . | . . . Hacks Repelled . | . . . Allies | -11 -10 -10 -------- Run | Yrd Mat Min Total Allies . | . . . Largest Group . | . . . Highest-Rated Group . | . . . Highest-Rated Ally . | . . . Total Orders . | . . . Ally Attacks . | . . . Total Damage . | . . . Kills . | . . . Allies Corrupted . | . . . Allies Melted . | . . . Intel | -11 -10 -10 ------- Run | Yrd Mat Min Robot Analysis Total . | . . . Derelict Logs Recovered 1 | . . 1 Drone Launches . | . . . Drone Recoveries . | . . . Exploration | -11 -10 -10 ------------- Run | Yrd Mat Min Turns Passed 2459 | 158 1061 1240 Spaces Moved 628 | 75 324 229 Core 10 | 4 3 3 Treads 405 | . 179 226 Legs 213 | 71 142 . Wheels . | . . . Hover . | . . . Flight . | . . . Fastest Speed 50 | 50 120 480 Average Speed 331 | 116 265 495 Slowest Speed 1650 | 120 480 1650 Overloaded Moves . | . . . Propulsion Burnouts . | . . . Robots Hopped . | . . . Cave-ins Triggered . | . . . Exploration Rate (%) 43 | 5 48 78 Regions Visited 2 Branch Regions 1 Pre-discovered Areas . | . . . Known Exits Taken . | . . . Unknown Exits Taken 2 | 1 1 . Scrap Searched 1 | . . 1 Spaces Dug . | . . . Terrain Destroyed . | . . . Melee . | . . . Projectile . | . . . AOE . | . . . Terrain Rammed . | . . . Walls Destroyed . | . . . Machines Disabled . | . . . Actions | -11 -10 -10 --------- Run | Yrd Mat Min Total 825 | 107 435 283 Wait 17 | . 8 9 Move 626 | 74 323 229 Hop . | . . . Pick Up 24 | 8 15 1 Fast Attach 16 | 7 9 . Attach 6 | . 1 5 Detach . | . . . Swap 8 | . 7 1 Drop 21 | . 21 . Fire 107 | 18 51 38 Melee . | . . . Ram . | . . . Kick . | . . . Crush . | . . . Escape Stasis . | . . . Rewire . | . . . Trap . | . . . Miscellaneous . | . . . Route ------- -11/Scrapyard -10/Materials (discovered 3 exits: [*Mat] / [*Min] / [*Sub]) -10/Mines (discovered 1 exit: [*Mat]) History --------- Turn | Location | Event 6 | -11/Scrapyard | Discovered new exit (range 15) 159 | -11/Scrapyard | Entered Materials 284 | -10/Materials | Discovered new exit (range 15) 311 | -10/Materials | Build established: Mutant 488 | -10/Materials | Discovered new exit (range 8) 907 | -10/Materials | Core integrity fell below 50% 1145 | -10/Materials | Discovered new exit (range 11) 1220 | -10/Materials | Entered Mines 1940 | -10/Mines | Learned location of 1 exit from Materials 2136 | -10/Mines | Core integrity fell below 20% 2368 | -10/Mines | Discovered new exit (range 6) 2440 | -10/Mines | Lost 4 parts (1p1n1u1w) 2460 | -10/Mines | Destroyed by G-47 Trooper with Particle Gun Last Messages --------------- 02404_ Overheating: Short circuit. 02405_ Overheating: Med. Armor Plating damaged (-32). 02408_ Overheating: Energy bleed (-7). 02409_ Power failure, Lgt. Ion Engine shutdown. 02409_ Particle Cannon broken. 02409_ Overheating: Short circuit. 02409_ G-47 Trooper heat short circuits Aluminum Leg. 02409_ Med. Armor Plating destroyed. 02409_ R-06 Scavenger collects Sml. Laser. 02411_ Overheating: Matter decay (-30). 02413_ Overheating: Energy bleed (-4). 02413_ R-06 Scavenger collects Aluminum Leg. 02414_ Power failure, Lgt. Ion Engine shutdown. 02416_ Overheating: Energy bleed (-8). 02419_ Overheating: Med. Armor Plating damaged (-55). 02420_ Power failure, Lgt. Ion Engine shutdown. 02446_ Lgt. Ion Engine destroyed. Map ----- +----------------------------------------------------+ | ???????# """ """ """ """%#??????????????# #??? | | ???????#### #??????????????# #??? | | ??????????# #??????????????# #??? | | ??????????###################??????????????# #??? | | ???????????????????????????????????????????# #??? | | ???????????????????????????????????????????# #??? | | ???????????????????????????????????????????# #??? | | ???????????????????????????????????????????# #??? | | ?????????????????######????????????????????# #??? | | ?????????????##### ##???????????????????# #??? | | ????????????## ##??????????????????# #??? | | ????????????# ######?????????????# #??? | | ????????????# ## ##????????????# ##?? | | ???#????????# ##??????????## ##? | | ?? #???????## #??????????# #? | | #? #??????## #??????????# #? | | ## ##????## #?????????## ##? | | ###### ###### #?????????# #?? | | ##????## #?????????# #?? | | ## #### ## #??????## #?????????## ##?? | | #?????# ## #???????# #??????????####??? | | ##?????# ### ##??????## ##????????????????? | | #??????# #?########?#?????# ##????????????????? | | ##?????# ##????######T###?# ##???????????????? | | #?????# ##???#!% ### ####????????????? | | #?????# #???#="" < @ g #????????????? | | ##?????# %##???#*"" #???????????? | | #?????## #????# """ ## ## #??????????? | | ?????## ##???# ?# #?# ???????? | | ?????# *##??# ?# #??# #?????? | | ?????# #??##########?# #???## ##?????? | | ??# ## #?????????????# #?????## ###??????? | | ??# ##?????????????# #???????####????????? | | ??#### ###??????????????# #???????????????????? | | ?????# ##????????????????? ????????????????????? | | ????## #??????????????????#????????????????????? | | ???## #???????????????????????????????????????? | | ?### ##???????????????????????????????????????? | | ## ##????????????????????????????????????????? | | # #?????????????????????????????????????????? | | #?????????????????????????????????????????? | | ##?????????????????????????????????????????? | | ###??????????????????????????????????????????? | | #????????????????????????????????????????????? | | # #????????????????????????????????????????????? | | # #????????????????????????????????????????????? | | # #????????????????????????????????????????????? | | # #????????????????????????????????????????????? | | # #????????????????????????????????????????????? | | # #????????????????????????????????????????????? | +----------------------------------------------------+ Best States ------------- Heat Dissipation 35 Energy Generation 10 Energy Capacity 125 Matter Stores 300 Matter Capacity 300 Sight Range 16 Terrain Scan Density 10 Armor Coverage 225 Evasion (%) 55 Recoil Reduction 2 Item Schematics ----------------- None Robot Schematics ------------------ None Fabricated ------------ Nothing Alien Tech Used ----------------- None Achievements -------------- None Challenges ------------ None Game ------ Seed LinkedChromaticChronowheel Manual? 0 Play Time 00:18:01 Cumulative 43.9 hours Start 2024.10.20 @ 22:16:22 End 2024.10.20 @ 22:32:59 Sessions 1 Manual Loads 0 Difficulty Rogue Special Mode None Game No. 38 Rogue 38 Adventurer 0 Explorer 0 Win Type - Total 0 Types 0/0/0/0/0/0/0/0/0 Lore% 20 Gallery% 30 Achievement% 30 Wizard Run 0 Options --------- Layout 1 ASCII 0 Keyboard 0 Movement Mouse Keybinds 0 Fullscreen 2 Font 24/X11 Map View 50x35 Zoom Use 0% Tactical HUD 1 Map Filters NONE Filters NONE Steam 1 RUN: b573d476-9367-43a8-ac28-01e4683c149c